bitfinex/quotes_BTCUSD_20240719
["timestamp","ask_amount","ask_price","bid_price","bid_amount"]
[1721370439449,0.16012273,64377.0,64376.0,0.20385918]
[1721370442426,0.15966029,64377.0,64376.0,0.20385918]
[1721370445003,0.15967603,64377.0,64376.0,0.20385918]
[1721370445207,0.06653687,64377.0,64376.0,0.20385918]
[1721370446371,0.15968453,64377.0,64376.0,0.20385918]
[1721370446946,0.06653687,64377.0,64376.0,0.20385918]
[1721370447771,0.15968453,64377.0,64376.0,0.20385918]
[1721370448095,0.06653687,64377.0,64376.0,0.20385918]
[1721370448212,0.15968453,64377.0,64376.0,0.20385918]
[1721370448922,0.15957028,64377.0,64376.0,0.20385918]
[1721370449343,0.06641257,64377.0,64376.0,0.20385918]
[1721370449754,0.13628392,64377.0,64376.0,0.20385918]
[1721370449980,0.06641257,64377.0,64376.0,0.20385918]
[1721370450182,0.00183,64377.0,64376.0,1.18803224]
[1721370450425,0.00183,64377.0,64376.0,1.44870624]
[1721370450610,0.00183,64377.0,64376.0,1.44559992]
[1721370452287,0.00083,64377.0,64376.0,1.44559992]
[1721370452504,0.00183,64377.0,64376.0,1.44559992]
[1721370452736,0.00283,64377.0,64376.0,1.44859992]
[1721370453238,0.00183,64377.0,64376.0,1.44859992]
[1721370453385,0.00283,64377.0,64376.0,1.45159992]
[1721370454231,0.00283,64377.0,64376.0,1.50159992]
[1721370455696,0.00283,64377.0,64376.0,1.81227392]
[1721370456568,0.00083,64377.0,64376.0,1.97007392]
[1721370456848,0.00283,64377.0,64376.0,1.97828067]
[1721370458384,0.00183,64377.0,64376.0,1.97528067]
[1721370458525,0.00283,64377.0,64376.0,1.97828067]
[1721370458723,0.00183,64377.0,64376.0,1.97228067]
[1721370459130,0.00383,64377.0,64376.0,1.97828067]
[1721370459554,0.00283,64377.0,64376.0,1.97528067]
[1721370459932,0.00383,64377.0,64376.0,1.97828067]
[1721370460968,0.00283,64377.0,64376.0,1.97528067]
[1721370461774,0.00283,64377.0,64376.0,2.28595467]
[1721370461970,0.00283,64377.0,64376.0,2.28295467]
[1721370461971,0.00083,64377.0,64376.0,2.28295467]
[1721370462289,0.00083,64377.0,64376.0,2.28595467]
[1721370462290,0.00183,64377.0,64376.0,2.28595467]
[1721370462653,0.00083,64377.0,64376.0,2.28295467]
[1721370463074,0.00083,64377.0,64376.0,2.28895467]
[1721370463075,0.00283,64377.0,64376.0,2.28895467]
[1721370463477,0.00183,64377.0,64376.0,2.28595467]
[1721370463877,0.00283,64377.0,64376.0,2.28895467]
[1721370467954,0.00283,64377.0,64376.0,2.38895467]
[1721370473308,0.00283,64377.0,64376.0,2.07828067]
[1721370473524,0.00283,64377.0,64376.0,1.14313267]
[1721370475060,0.00183,64377.0,64376.0,1.14013267]
[1721370475260,0.00083,64377.0,64376.0,1.14013267]
[1721370475452,0.00183,64377.0,64376.0,1.14013267]
[1721370475694,0.00283,64377.0,64376.0,1.14013267]
[1721370475892,0.00383,64377.0,64376.0,1.14313267]
[1721370476050,0.00283,64377.0,64376.0,1.14013267]
[1721370476455,0.00283,64377.0,64376.0,1.14313267]
[1721370476456,0.00383,64377.0,64376.0,1.14313267]
[1721370478302,0.00383,64377.0,64376.0,1.45380667]
[1721370479833,0.00383,64377.0,64376.0,1.14313267]
[1721370480258,0.00383,64377.0,64376.0,1.19313267]
[1721370480543,0.00383,64377.0,64376.0,1.50380667]
[1721370481100,0.00383,64377.0,64376.0,1.45380667]
[1721370481300,0.00383,64377.0,64376.0,1.50380667]
[1721370481682,0.00283,64377.0,64376.0,1.50080667]
[1721370481904,0.00083,64377.0,64376.0,1.49780667]
[1721370482291,0.00283,64377.0,64376.0,1.50380667]
[1721370482889,0.00183,64377.0,64376.0,1.50080667]
[1721370483104,0.00183,64377.0,64376.0,1.61460667]
[1721370483327,0.00283,64377.0,64376.0,1.61760667]
[1721370483931,0.00283,64377.0,64376.0,1.45380667]
[1721370485022,0.00283,64377.0,64376.0,1.50380667]
[1721370496889,0.00283,64377.0,64376.0,1.45380667]
[1721370499323,0.00283,64377.0,64376.0,1.50380667]
[1721370502472,0.00283,64377.0,64376.0,1.63272502]
[1721370505254,0.00283,64377.0,64376.0,1.50380667]
[1721370505431,0.00283,64377.0,64376.0,1.63275055]
[1721370505895,0.00283,64377.0,64376.0,1.63274951]
[1721370507313,0.00283,64377.0,64376.0,1.58274951]
[1721370507518,0.00283,64377.0,64376.0,1.51694951]
[1721370508855,0.00283,64377.0,64376.0,1.38800667]
[1721370509070,0.00283,64377.0,64376.0,1.51701642]
[1721370509477,0.00283,64377.0,64376.0,1.56701642]
[1721370511391,0.00283,64377.0,64376.0,1.87769042]
[1721370511619,0.00283,64377.0,64376.0,1.56701642]
[1721370514340,0.20248689,64406.0,64405.0,0.05]
[1721370514557,0.20448689,64406.0,64405.0,0.05]
[1721370514800,0.25504157,64406.0,64405.0,0.05]
[1721370515239,0.20838085,64406.0,64405.0,0.05]
[1721370517142,0.27821218,64406.0,64405.0,0.05]
[1721370517387,0.20838085,64406.0,64405.0,0.05]
[1721370517621,0.27821218,64406.0,64405.0,0.05]
[1721370517840,0.20838085,64406.0,64405.0,0.05]
[1721370518295,0.1444,64406.0,64405.0,0.05]
[1721370518504,0.27867032,64406.0,64405.0,0.05]
[1721370518711,0.20886518,64406.0,64405.0,0.05]
[1721370518913,0.25539904,64406.0,64405.0,0.05]
[1721370519976,0.20886518,64406.0,64405.0,0.05]
[1721370520195,0.20886518,64406.0,64405.0,0.205267]
[1721370521426,0.1444,64406.0,64405.0,0.205267]
[1721370521963,0.20851781,64406.0,64405.0,0.205267]
[1721370522169,0.1444,64406.0,64405.0,0.205267]
[1721370524194,0.20849889,64406.0,64405.0,0.205267]
[1721370525234,0.20845711,64406.0,64405.0,0.205267]
[1721370527416,0.1444,64406.0,64405.0,0.205267]
[1721370530258,0.20882194,64406.0,64405.0,0.205267]
[1721370531182,0.1444,64406.0,64405.0,0.205267]
[1721370531374,0.20881509,64406.0,64405.0,0.205267]
[1721370535162,0.20878356,64406.0,64405.0,0.205267]
[1721370537617,0.20864193,64406.0,64405.0,0.205267]
[1721370538163,0.07024193,64406.0,64405.0,0.515801]
[1721370540793,0.07008232,64406.0,64405.0,0.515801]
[1721370541552,0.07008232,64406.0,64405.0,0.826335]
[1721370541737,0.07008232,64406.0,64405.0,1.196969]
[1721370542518,0.07008232,64406.0,64405.0,1.273269]
[1721370543215,0.006,64406.0,64405.0,1.273269]
[1721370545115,0.006,64406.0,64405.0,1.42765074]
[1721370545506,0.006,64406.0,64405.0,1.47765074]
[1721370546324,0.006,64406.0,64405.0,1.78818474]
[1721370546671,0.006,64406.0,64405.0,1.79005678]
[1721370548155,0.006,64406.0,64405.0,1.74005678]
[1721370548556,0.006,64406.0,64405.0,1.79005678]
[1721370551495,0.00683,64406.0,64405.0,1.79005678]
[1721370554200,0.00683,64406.0,64405.0,1.95385678]
[1721370554394,0.00683,64406.0,64405.0,2.08279543]
[1721370554395,0.00283,64406.0,64405.0,2.08279543]
[1721370554605,0.00283,64406.0,64405.0,1.95385678]
[1721370554799,0.00283,64406.0,64405.0,1.95885678]
[1721370555131,0.00283,64406.0,64405.0,2.0876512]
[1721370555388,0.00283,64406.0,64405.0,1.90385678]
[1721370555591,0.00383,64406.0,64405.0,1.75405678]
[1721370555993,0.00183,64406.0,64405.0,1.75405678]
[1721370556197,0.00283,64406.0,64405.0,1.76805678]
[1721370556569,0.00283,64406.0,64405.0,1.75405678]
[1721370556770,0.00383,64406.0,64405.0,1.76805678]
[1721370557545,0.00383,64406.0,64405.0,1.81805678]
[1721370561231,0.00383,64406.0,64405.0,2.52045684]
[1721370562286,0.00383,64406.0,64405.0,2.52081082]
[1721370562490,0.00383,64406.0,64405.0,2.08185678]
[1721370562702,0.00383,64406.0,64405.0,1.91805678]
[1721370565799,0.00083,64411.0,64410.0,0.1]
[1721370566006,0.00084,64419.0,64418.0,2.109296]
[1721370566250,0.00084,64419.0,64418.0,2.39168842]
[1721370566460,0.00084,64419.0,64418.0,2.49168842]
[1721370567712,0.00184,64419.0,64418.0,2.50568842]
[1721370568542,0.00184,64419.0,64418.0,2.37767774]
[1721370568753,0.00184,64419.0,64418.0,2.5065762]
[1721370568964,0.00084,64419.0,64418.0,2.5065762]
[1721370569373,0.00084,64419.0,64418.0,2.5205762]
[1721370570981,0.00084,64442.0,64441.0,0.05]
[1721370571213,0.00084,64442.0,64441.0,0.515541]
[1721370571431,0.00084,64442.0,64441.0,1.136263]
[1721370571565,0.00084,64442.0,64441.0,1.29064474]
[1721370572353,0.00084,64442.0,64441.0,1.29264474]
[1721370572766,0.00084,64442.0,64441.0,1.29664474]
[1721370573087,0.00084,64442.0,64441.0,1.29264474]
[1721370573492,0.00084,64442.0,64441.0,1.30264474]
[1721370573693,0.00084,64442.0,64441.0,1.82680574]
[1721370573910,0.00084,64442.0,64441.0,1.82645953]
[1721370574064,0.00084,64442.0,64441.0,1.83545953]
[1721370574270,0.00084,64442.0,64441.0,1.78380574]
[1721370574433,0.00084,64442.0,64441.0,1.83380574]
[1721370574941,0.00084,64442.0,64441.0,1.83545953]
[1721370575143,0.00084,64442.0,64441.0,1.78380574]
[1721370576377,0.00084,64442.0,64441.0,1.62000574]
[1721370576578,0.00084,64442.0,64441.0,1.30964474]
[1721370576782,0.00084,64442.0,64441.0,0.99928374]
[1721370577332,0.00084,64442.0,64441.0,0.844902]
[1721370581930,0.00084,64442.0,64441.0,1.155263]
[1721370583159,0.00084,64442.0,64441.0,1.45734474]
[1721370590137,0.00084,64442.0,64441.0,1.81770574]
[1721370590295,0.00084,64442.0,64441.0,1.91770574]
[1721370593169,0.00084,64442.0,64441.0,2.08150574]
[1721370594138,0.00084,64442.0,64441.0,2.20950707]
[1721370596232,0.00084,64442.0,64441.0,2.15950707]
[1721370597164,0.00084,64442.0,64441.0,2.20950707]
[1721370600144,0.00084,64442.0,64441.0,2.21015113]
[1721370600546,0.00084,64442.0,64441.0,2.20115113]
[1721370600787,0.00084,64442.0,64441.0,2.19115113]
[1721370600998,0.00084,64442.0,64441.0,2.20515113]
[1721370601567,0.00084,64442.0,64441.0,2.19115113]
[1721370601979,0.00084,64442.0,64441.0,2.20515113]
[1721370602228,0.00084,64442.0,64441.0,2.52951213]
[1721370602398,0.00084,64442.0,64441.0,2.50151213]
[1721370602604,0.00084,64442.0,64441.0,2.50151446]
[1721370602835,0.00084,64442.0,64441.0,2.51551446]
[1721370603044,0.00084,64442.0,64441.0,2.50151446]
[1721370603400,0.00084,64442.0,64441.0,2.51551446]
[1721370603603,0.00084,64442.0,64441.0,2.50151446]
[1721370604231,0.00084,64442.0,64441.0,2.52951446]
[1721370605034,0.00084,64442.0,64441.0,2.51551446]
[1721370605803,0.00084,64442.0,64441.0,2.5007152]
[1721370606025,0.00084,64442.0,64441.0,2.5147152]
[1721370606234,0.00084,64442.0,64441.0,2.57913869]
[1721370606436,0.00084,64442.0,64441.0,2.5147152]
[1721370607308,0.00084,64442.0,64441.0,2.5007152]
[1721370607897,0.00084,64442.0,64441.0,2.5147152]
[1721370608274,0.00084,64442.0,64441.0,2.56073597]
[1721370608479,0.00084,64442.0,64441.0,2.54673597]
[1721370608683,0.00084,64442.0,64441.0,2.56073597]
[1721370608884,0.00084,64442.0,64441.0,2.5614878]
[1721370609075,0.00084,64442.0,64441.0,2.51544606]
[1721370609276,0.00084,64442.0,64441.0,2.5754878]
[1721370609473,0.00084,64442.0,64441.0,2.52944606]
[1721370610283,0.00084,64442.0,64441.0,2.15458506]
[1721370610493,0.00084,64442.0,64441.0,2.10458506]
[1721370610695,0.00084,64442.0,64441.0,2.02138506]
[1721370611521,0.00084,64442.0,64441.0,2.07138506]
[1721370611744,0.00084,64442.0,64441.0,2.20888506]
[1721370612215,0.00084,64442.0,64441.0,2.2091652]
[1721370613036,0.00084,64442.0,64441.0,2.5195262]
[1721370614833,0.00084,64442.0,64441.0,2.56565305]
[1721370615405,0.00084,64442.0,64441.0,2.56566947]
[1721370615611,0.00084,64442.0,64441.0,2.51952238]
[1721370615817,0.00084,64442.0,64441.0,2.5216926]
[1721370618470,0.00084,64442.0,64441.0,2.52169539]
[1721370621741,0.00084,64442.0,64441.0,2.52169464]
[1721370624468,0.00084,64442.0,64441.0,2.46039464]
[1721370624901,0.00084,64442.0,64441.0,2.41039517]
[1721370625114,0.00084,64442.0,64441.0,2.33419517]
[1721370625791,0.00084,64442.0,64441.0,2.20533696]
[1721370626019,0.00084,64442.0,64441.0,2.38419563]
[1721370627569,0.00084,64442.0,64441.0,2.33419563]
[1721370627785,0.14064,64442.0,64441.0,1.76003463]
[1721370628003,0.14064,64442.0,64441.0,0.853902]
[1721370628466,0.14064,64442.0,64441.0,0.839902]
[1721370628908,0.14064,64442.0,64441.0,0.853902]
[1721370629168,0.14064,64442.0,64441.0,0.839902]
[1721370629698,0.14064,64442.0,64441.0,0.825902]
[1721370630019,0.14064,64442.0,64441.0,0.839902]
[1721370630223,0.14064,64442.0,64441.0,0.028]
[1721370630672,0.20360393,64442.0,64441.0,0.028]
[1721370630963,0.25010997,64442.0,64441.0,0.028]
[1721370631131,0.14064,64442.0,64441.0,0.028]
[1721370631425,0.25052089,64442.0,64441.0,0.028]
[1721370631620,0.14064,64442.0,64441.0,0.028]
[1721370631826,10.20402699,64442.0,64441.0,0.028]
[1721370632179,10.20402699,64442.0,64441.0,0.014]
[1721370632499,10.14064,64442.0,64441.0,0.014]
[1721370632699,10.14064,64442.0,64441.0,0.023]
[1721370632860,10.14064,64442.0,64441.0,0.059]
[1721370633278,10.14064,64442.0,64441.0,0.05]
[1721370633506,10.14064,64442.0,64440.0,0.205183]
[1721370633725,0.14,64441.0,64440.0,0.205183]
[1721370635627,0.141,64441.0,64440.0,0.205183]
[1721370636068,0.142,64441.0,64440.0,0.205183]
[1721370636918,0.1463,64440.0,64437.0,0.310379]
[1721370637148,0.1463,64440.0,64439.0,0.155185]
[1721370637358,9.54914,64442.0,64436.0,0.310383]
[1721370637534,9.54914,64442.0,64438.0,0.155187]
[1721370638851,9.54914,64442.0,64440.0,0.05]
[1721370639270,9.54914,64442.0,64439.0,0.155185]
[1721370639271,0.001,64440.0,64439.0,0.155185]
[1721370639466,9.54914,64442.0,64439.0,0.155185]
[1721370639908,9.55014,64442.0,64439.0,0.155185]
[1721370640285,0.1259,64441.0,64439.0,0.155185]
[1721370640829,0.1259,64440.0,64439.0,0.155185]
[1721370641885,0.1259,64441.0,64437.0,0.155188]
[1721370642086,9.55014,64442.0,64438.0,0.155187]
[1721370642287,0.1217,64440.0,64438.0,0.155187]
[1721370642535,0.1241,64441.0,64438.0,0.155187]
[1721370642716,9.55014,64442.0,64438.0,0.155187]
[1721370642920,0.1241,64440.0,64438.0,0.155187]
[1721370643145,9.54914,64442.0,64438.0,0.155187]
[1721370643317,0.1241,64439.0,64438.0,0.155187]
[1721370648218,0.1241,64439.0,64436.0,0.465573]
[1721370648654,0.1241,64439.0,64435.0,0.155195]
[1721370648863,0.1241,64439.0,64436.0,0.155192]
[1721370651813,0.279285,64439.0,64434.0,0.05]
[1721370652019,0.0622,64436.0,64426.0,0.05]
[1721370652217,0.1216,64431.0,64426.0,0.05]
[1721370652578,0.276805,64431.0,64424.0,0.05]
[1721370652782,0.1216,64431.0,64424.0,0.05]
[1721370653001,0.0663,64430.0,64427.0,0.155213]
[1721370653359,0.0663,64430.0,64428.0,0.15521]
[1721370653565,0.0663,64430.0,64428.0,0.20521]
[1721370654100,0.0663,64430.0,64429.0,0.05]
[1721370655615,0.0663,64430.0,64429.0,0.058]
[1721370655832,0.0663,64430.0,64429.0,0.067]
[1721370656052,0.244507,64430.0,64429.0,0.008]
[1721370656492,0.244507,64430.0,64429.0,0.015]
[1721370656752,0.30865334,64430.0,64429.0,0.015]
[1721370657388,0.15344634,64430.0,64429.0,0.015]
[1721370657596,0.15341611,64430.0,64429.0,0.057]
[1721370657800,0.15341611,64430.0,64429.0,0.062]
[1721370658245,0.06411611,64430.0,64429.0,0.062]
[1721370658676,0.06411611,64430.0,64429.0,0.527628]
[1721370658888,0.06411611,64430.0,64429.0,0.477628]
[1721370659095,0.06411611,64430.0,64429.0,0.160209]
[1721370659335,0.06411611,64430.0,64429.0,0.155209]
[1721370659564,0.0594,64431.0,64429.0,0.155209]
[1721370659775,0.06413002,64430.0,64429.0,0.155209]
[1721370662026,0.06408111,64430.0,64429.0,0.155209]
[1721370662650,0.06408111,64430.0,64426.0,0.310432]
[1721370662855,0.06408111,64430.0,64428.0,0.155211]
[1721370664054,0.06408111,64430.0,64429.0,0.155209]
[1721370664262,0.06408111,64430.0,64429.0,0.515628]
[1721370664683,0.001,64430.0,64429.0,0.155209]
[1721370664985,0.06508111,64430.0,64429.0,0.155209]
[1721370665193,0.0652257,64430.0,64429.0,0.155209]
[1721370668359,0.001,64430.0,64429.0,0.155209]
[1721370668565,0.0650859,64430.0,64429.0,0.155209]
[1721370669069,0.0650859,64430.0,64428.0,0.155211]
[1721370669203,0.0640859,64429.0,64428.0,0.155211]
[1721370671182,0.0640859,64431.0,64428.0,0.155211]
[1721370671408,0.0650859,64430.0,64428.0,0.155211]
[1721370671641,0.06404972,64429.0,64428.0,0.155211]
[1721370672645,0.001,64429.0,64428.0,0.155211]
[1721370673010,0.06504972,64429.0,64428.0,0.155211]
[1721370673632,0.06504972,64429.0,64426.0,0.205216]
[1721370673860,0.06404972,64428.0,64426.0,0.205216]
[1721370674882,0.215303,64432.0,64426.0,0.205216]
[1721370675084,0.001,64428.0,64426.0,0.205216]
[1721370675608,0.001,64428.0,64422.0,0.05]
[1721370675727,0.06386809,64427.0,64423.0,0.155223]
[1721370676140,0.0628,64426.0,64423.0,0.155223]
[1721370676360,0.0594,64427.0,64423.0,0.205223]
[1721370676564,0.06387008,64426.0,64423.0,0.205223]
[1721370676810,0.0638,64428.0,64423.0,0.205223]
[1721370677013,0.06284626,64427.0,64423.0,0.205223]
[1721370677421,0.06284626,64427.0,64426.0,0.001]
[1721370677829,0.06284626,64427.0,64419.0,0.000913]
[1721370677830,0.278031,64420.0,64419.0,0.000913]
[1721370678031,1.35615646,64420.0,64419.0,0.000913]
[1721370678204,1.74310456,64420.0,64419.0,0.000913]
[1721370678409,1.62681979,64420.0,64419.0,0.000913]
[1721370678607,1.74306458,64420.0,64419.0,0.000913]
[1721370678808,1.74287781,64420.0,64419.0,0.000913]
[1721370679213,1.74287781,64420.0,64419.0,0.001913]
[1721370679422,1.73507781,64420.0,64419.0,0.001913]
[1721370679627,0.1228,64413.0,64410.0,0.05]
[1721370679828,0.06284626,64412.0,64410.0,0.05]
[1721370680037,0.06284626,64412.0,64411.0,0.05]
[1721370681047,0.06361182,64412.0,64411.0,0.05]
[1721370681655,0.06361182,64412.0,64411.0,0.054]
[1721370683156,0.06361182,64412.0,64411.0,0.05604162]
[1721370684168,0.1228,64413.0,64411.0,0.05604162]
[1721370684344,0.16372005,64412.0,64411.0,0.00604162]
[1721370684559,0.25542479,64412.0,64411.0,0.004]
[1721370684759,0.31897692,64412.0,64411.0,0.00611733]
[1721370684985,0.08655213,64412.0,64411.0,0.00611733]
[1721370685136,0.08655213,64412.0,64411.0,0.002]
[1721370685331,0.08655213,64412.0,64411.0,0.00311916]
[1721370685719,0.08955213,64412.0,64411.0,0.00311916]
[1721370685958,0.026,64412.0,64411.0,0.00311916]
[1721370686166,0.09001164,64412.0,64411.0,0.001]
[1721370686808,0.09001164,64412.0,64410.0,0.05]
[1721370687034,0.06388496,64411.0,64410.0,0.05]
[1721370687490,0.026,64412.0,64410.0,0.05]
[1721370687708,0.06388513,64411.0,64410.0,0.05]
[1721370688372,0.06588513,64411.0,64410.0,0.05]
[1721370690781,0.06523865,64411.0,64410.0,0.05]
[1721370690941,0.06923865,64411.0,64410.0,0.05]
[1721370691592,0.006,64411.0,64410.0,0.515765]
[1721370691799,0.006,64411.0,64410.0,0.51788416]
[1721370696192,0.006,64411.0,64410.0,0.82839416]
[1721370697050,0.0594,64409.0,64397.0,0.310571]
[1721370697234,0.1196,64401.0,64396.0,0.155288]
[1721370697608,0.1196,64401.0,64394.0,0.05]
[1721370697609,0.08597777,64400.0,64394.0,0.05]
[1721370697813,0.06297777,64399.0,64394.0,0.155293]
[1721370698019,0.06297777,64399.0,64392.0,0.155298]
[1721370698224,0.06297777,64399.0,64390.0,0.155302]
[1721370698424,0.06297777,64399.0,64392.0,0.155297]
[1721370698425,0.023,64398.0,64392.0,0.155297]
[1721370698651,0.06297777,64397.0,64393.0,0.155295]
[1721370699892,0.06497777,64397.0,64393.0,0.156295]
[1721370700203,0.0633855,64396.0,64393.0,0.156295]
[1721370700594,0.157286,64397.0,64393.0,0.001]
[1721370701124,0.165286,64397.0,64393.0,0.002]
[1721370701328,0.163286,64397.0,64393.0,0.001]
[1721370701682,0.171286,64397.0,64393.0,0.002]
[1721370702977,0.155293,64394.0,64393.0,0.002]
[1721370703188,0.178293,64394.0,64393.0,0.002]
[1721370703917,0.178293,64394.0,64393.0,0.001]
[1721370704121,0.023,64394.0,64393.0,0.001]
[1721370704317,0.023,64394.0,64391.0,0.05]
[1721370704720,0.028,64394.0,64393.0,0.05]
[1721370704967,0.033,64394.0,64393.0,0.05]
[1721370705373,0.028,64394.0,64393.0,0.05]
[1721370705577,0.023,64394.0,64393.0,0.05]
[1721370705775,0.023,64394.0,64392.0,0.05]
[1721370705982,0.005,64394.0,64393.0,0.05]
[1721370706194,0.005,64394.0,64393.0,0.515888]
[1721370706403,0.01,64394.0,64393.0,0.657388]
[1721370706608,0.01,64394.0,64393.0,0.96798]
[1721370706812,0.01,64394.0,64393.0,1.278572]
[1721370707221,0.01,64394.0,64393.0,1.28060593]
[1721370707642,0.015,64394.0,64393.0,1.28060593]
[1721370707840,0.007,64394.0,64393.0,1.28060593]
[1721370708079,0.012,64394.0,64393.0,1.28060593]
[1721370708587,0.005,64394.0,64393.0,0.82851393]
[1721370708796,0.005,64394.0,64393.0,0.21432993]
[1721370708968,0.005,64394.0,64393.0,0.52492193]
[1721370709519,0.005,64394.0,64393.0,0.47492193]
[1721370709800,0.005,64394.0,64393.0,0.52492193]
[1721370709929,0.005,64394.0,64393.0,0.16432993]
[1721370710736,0.005,64394.0,64393.0,0.21432993]
[1721370712784,1.86673574,64394.0,64393.0,0.007]
[1721370713017,1.86673574,64394.0,64393.0,0.00692552]
[1721370713018,2.15038184,64394.0,64393.0,0.00692552]
[1721370713665,2.15038184,64394.0,64393.0,0.00392552]
[1721370713913,2.15338184,64394.0,64393.0,0.00392552]
[1721370714121,0.155323,64382.0,64378.0,0.05]
[1721370714321,0.18607074,64381.0,64378.0,0.05]
[1721370714530,0.06307074,64380.0,64378.0,0.05]
[1721370714973,0.06307074,64380.0,64377.0,0.000913]
[1721370715220,0.06307074,64380.0,64377.0,0.050913]
[1721370715221,0.21839774,64380.0,64377.0,0.050913]
[1721370715426,0.06307074,64379.0,64377.0,0.050913]
[1721370715539,0.155327,64380.0,64377.0,0.050913]
[1721370716951,0.155327,64380.0,64378.0,0.05]
[1721370717313,0.155332,64378.0,64377.0,0.000913]
[1721370717535,0.410651,64381.0,64379.0,0.05]
[1721370717536,0.155327,64381.0,64379.0,0.05]
[1721370717666,0.310646,64382.0,64379.0,0.05]
[1721370717667,0.156327,64380.0,64379.0,0.05]
[1721370717875,0.156327,64380.0,64378.0,0.05]
[1721370718074,0.155327,64380.0,64378.0,0.05]
[1721370718281,0.155327,64380.0,64377.0,0.050913]
[1721370718649,0.155327,64380.0,64378.0,0.05]
[1721370720016,0.155327,64380.0,64377.0,0.050913]
[1721370720220,0.156327,64380.0,64377.0,0.050913]
[1721370720987,0.15533,64379.0,64377.0,0.050913]
[1721370721344,0.15533,64379.0,64377.0,0.000913]
[1721370722406,0.15533,64379.0,64377.0,0.001913]
[1721370722607,0.155326,64381.0,64380.0,0.1946]
[1721370722807,0.465976,64381.0,64380.0,0.1446]
[1721370723044,0.465976,64381.0,64380.0,0.0792]
[1721370723218,0.155332,64378.0,64377.0,0.001913]
[1721370723850,0.155332,64378.0,64377.0,0.000913]
[1721370724411,0.52771332,64378.0,64377.0,0.000913]
[1721370724608,1.07659639,64378.0,64377.0,0.000913]
[1721370724933,1.09959639,64378.0,64377.0,0.002913]
[1721370725520,1.09959639,64378.0,64377.0,0.005913]
[1721370726169,0.70509506,64378.0,64377.0,0.005913]
[1721370726525,1.01576006,64378.0,64377.0,0.005913]
[1721370727186,0.70509506,64378.0,64377.0,0.005913]
[1721370727385,0.06171632,64378.0,64377.0,0.005913]
[1721370727542,0.15533,64379.0,64377.0,0.200713]
[1721370727740,0.15533,64379.0,64377.0,0.150713]
[1721370727963,0.21706621,64378.0,64377.0,0.150713]
[1721370728840,0.52773121,64378.0,64377.0,0.084413]
[1721370728962,0.52773121,64378.0,64377.0,0.002913]
[1721370729178,0.52773121,64378.0,64377.0,0.003913]
[1721370729779,0.52773121,64378.0,64377.0,0.001913]
[1721370730416,0.52773121,64378.0,64377.0,0.000913]
[1721370730626,0.52773121,64378.0,64377.0,0.003913]
[1721370731033,0.52746054,64378.0,64377.0,0.003913]
[1721370731453,0.21679554,64378.0,64377.0,0.053913]
[1721370731737,0.21679554,64378.0,64377.0,0.191313]
[1721370731944,0.06146354,64378.0,64377.0,0.193313]
[1721370732261,0.31064,64384.0,64379.0,0.05]
[1721370732467,0.08414177,64383.0,64381.0,0.05]
[1721370732687,0.06114177,64382.0,64381.0,0.05]
[1721370732889,0.23946577,64382.0,64381.0,0.05]
[1721370733313,0.155326,64381.0,64379.0,0.05]
[1721370733680,0.06114155,64380.0,64379.0,0.05]
[1721370734277,0.06108755,64380.0,64379.0,0.05]
[1721370734648,0.155332,64378.0,64377.0,0.000913]
[1721370734851,0.39380129,64378.0,64377.0,0.000913]
[1721370735058,0.70446629,64378.0,64377.0,0.000913]
[1721370736073,0.70430999,64378.0,64377.0,0.000913]
[1721370736275,0.06093125,64378.0,64377.0,0.192313]
[1721370736492,0.310636,64384.0,64377.0,0.192313]
[1721370736493,0.310636,64384.0,64378.0,0.05]
[1721370736708,0.155324,64382.0,64378.0,0.05]
[1721370736917,0.06092638,64381.0,64378.0,0.05]
[1721370737357,0.06130252,64380.0,64378.0,0.05]
[1721370737553,0.06130252,64379.0,64378.0,0.05]
[1721370738336,0.06130252,64379.0,64377.0,0.142313]
[1721370738467,0.06230252,64380.0,64377.0,0.142313]
[1721370738675,0.06130252,64379.0,64377.0,0.142313]
[1721370738879,0.06130252,64379.0,64377.0,0.192313]
[1721370739305,0.06130252,64378.0,64377.0,0.192313]
[1721370739509,0.06148151,64380.0,64377.0,0.192313]
[1721370739727,0.002,64382.0,64377.0,0.192313]
[1721370739728,0.06148151,64379.0,64378.0,0.962462]
[1721370739935,0.002,64382.0,64381.0,0.1936]
[1721370740140,0.002,64382.0,64381.0,0.970225]
[1721370740367,0.002,64382.0,64381.0,1.280875]
[1721370740608,0.155294,64394.0,64388.0,0.05]
[1721370740609,0.155297,64393.0,64388.0,0.05]
[1721370740804,0.06125673,64392.0,64389.0,0.1436]
[1721370741008,0.06125673,64391.0,64389.0,0.1436]
[1721370741217,0.06125673,64390.0,64389.0,0.1436]
[1721370741424,0.37186373,64390.0,64385.0,0.1436]
[1721370741624,0.06125673,64389.0,64385.0,0.1436]
[1721370741830,0.04642596,64392.0,64388.0,0.001]
[1721370742038,0.155305,64390.0,64388.0,0.001]
[1721370742240,0.06168099,64389.0,64385.0,0.1436]
[1721370742443,0.06168099,64388.0,64387.0,0.20531]
[1721370742846,0.06168099,64388.0,64387.0,0.15531]
[1721370743051,0.06168099,64388.0,64387.0,0.20531]
[1721370743769,0.04646651,64391.0,64389.0,0.05]
[1721370743973,0.155299,64392.0,64389.0,0.05]
[1721370743974,0.06144569,64390.0,64389.0,0.05]
[1721370744179,0.07144569,64390.0,64389.0,0.05]
[1721370744610,0.06144569,64390.0,64388.0,0.205306]
[1721370744814,0.06144569,64390.0,64388.0,0.05]
[1721370745230,0.06144569,64390.0,64387.0,0.001]
[1721370745444,0.06744569,64390.0,64389.0,0.001]
[1721370745854,0.07744569,64390.0,64389.0,0.002]
[1721370746188,0.07670561,64390.0,64389.0,0.002]
[1721370746585,0.22600861,64390.0,64389.0,0.001]